[Event "French Top 16-A 2024"]
[Site "Chartres"]
[Date "2024.06.01"]
[Round "1.1"]
[White "Harikrishna, Pentala"]
[Black "Erigaisi Arjun"]
[Result "0-1"]
[ECO "D47"]
[WhiteElo "2700"]
[BlackElo "2762"]
[Annotator "RC"]
[PlyCount "124"]
[EventDate "2024.06.01"]
[EventType "team-tourn"]
[EventCountry "FRA"]
[SourceTitle "playchess.com"]
[Source "ChessBase"]
[SourceQuality "1"]
[TimeControl "40/5400+30:1800+30"]

1. d4 {[%emt 0:00:10]} d5 {[%emt 0:00:21]} 2. Nf3 {[%emt 0:00:28]} Nf6 {[%emt 0:00:07]} 3. c4 {[%emt 0:00:11]} e6 {[%emt 0:00:19]} 4. Nc3 {[%emt 0:00:17]} c6 {[%emt 0:01:16]} 5. e3 {[%emt 0:05:19]} Nbd7 {[%emt 0:00:15]} 6. Bd3 {[%emt 0:00:21]} dxc4 {[%emt 0:00:09]} 7. Bxc4 {[%emt 0:00:03]} b5 {[%emt 0:00:05]} 8. Be2 {[%emt 0:00:09]} Bb7 {[%emt 0:05:07]} 9. O-O {[%emt 0:03:03]} a6 {[%emt 0:11:50]} 10. e4 {[%emt 0:12:29]} c5 {[%emt 0:00:22]} 11. e5 {[%emt 0:04:08]} Nd5 {[%emt 0:00:53]} 12. a4 {[%emt 0:00:41]} Nxc3 {[%emt 0:33:24]} 13. bxc3 {[%emt 0:00:37]} b4 {[%emt 0:00:05]} 14. Bg5 {[%emt 0:24:01]} Be7 {[%emt 0:02:00]} 15. Bxe7 {[%emt 0:00:20]} Qxe7 {[%emt 0:00:06]} 16. Rc1 {[%emt 0:00:26]} Rb8 {[%emt 0:17:36]} 17. cxb4 {[%emt 0:14:50]} cxb4 {[%emt 0:00:22]} 18. a5 {[%emt 0:00:24]} O-O {[%emt 0:00:08]} 19. Qa4 {[%emt 0:00:45]} Rfd8 {[%emt 0:03:05]} 20. Rc7 {[%emt 0:02:17]} Be4 {[%emt 0:00:09]} 21. Bxa6 {[%emt 0:08:03]} b3 {[%emt 0:09:27]} 22. Nd2 {[%emt 0:01:10]} Rb4 {[%emt 0:05:17]} 23. Qa3 {[%emt 0:01:43]} Bxg2 {[%emt 0:00:05]} 24. Kxg2 {[%emt 0:06:47]} Qg5+ {[%emt 0:00:04]} 25. Kh1 {[%emt 0:00:09]} Qxd2 {[%emt 0:00:04]} 26. Rb7 {[%emt 0:05:45]} Rxd4 {[%emt 0:00:28]} 27. Rxb3 {[%emt 0:00:55]} Nxe5 {[%emt 0:00:05]} 28. Rb2 {[%emt 0:02:12]} Qf4 {[%emt 0:01:47]} 29. Be2 {[%emt 0:00:22]} Ra4 {[%emt 0:07:00]} 30. Qd6 {[%emt 0:01:04]} Rd4 {[%emt 0:00:35]} 31. Qc7 {[%emt 0:01:11]} h6 {[%emt 0:01:23]} 32. a6 {[%emt 0:01:17]} R4d7 {[%emt 0:00:06]} 33. Qc1 {[%emt 0:01:30]} Qd4 {[%emt 0:00:31]} 34. Rc2 {[%emt 0:02:13]} Nd3 {[%emt 0:01:36]} 35. Qe3 {[%emt 0:00:50]} Qa4 {[%emt 0:00:04]} 36. Rc3 {[%emt 0:01:00]} Qxa6 {[%emt 0:00:05]} 37. Kg1 {[%emt 0:00:59]} Rd5 {[%emt 0:01:45]} 38. Rd1 {[%emt 0:00:16]} Nf4 {[%emt 0:00:10]} 39. Rxd5 {[%emt 0:01:01]} Nxe2+ {[%emt 0:00:20]} 40. Qxe2 {[%emt 0:00:07]} Qa1+ {[%emt 0:00:18]} 41. Kg2 {[%emt 0:30:09]} Qa8 {[%emt 0:30:23]} 42. Rcc5 {[%emt 0:00:00]} Rxd5 {[%emt 0:00:00]} 43. Rxd5 {[%emt 0:00:00]} Qxd5+ {[%emt 0:00:00]} 44. Kg1 {[%emt 0:00:00]} g5 {[%emt 0:00:00]} 45. Qb2 {[%emt 0:00:00]} Qd1+ {[%emt 0:00:00]} 46. Kg2 {[%emt 0:00:00]} Qg4+ {[%emt 0:00:00]} 47. Kf1 {[%emt 0:00:00]} Qf3 {[%emt 0:00:00]} 48. Kg1 {[%emt 0:00:00]} Kh7 {[%emt 0:00:00]} 49. Qc2+ {[%emt 0:00:00]} Kg7 {[%emt 0:00:00]} 50. Qb2+ {[%emt 0:00:00]} Kg6 {[%emt 0:00:00]} 51. Qh8 {[%emt 0:00:00]} g4 {[%emt 0:00:00]} 52. Qd8 {[%emt 0:00:00]} Kh5 {[%emt 0:00:00]} 53. Qe7 {[%emt 0:00:00]} Qf4 {[%emt 0:00:00]} 54. Kg2 {[%emt 0:00:00]} e5 {[%emt 0:00:00]} 55. Kg1 {[%emt 0:00:00]} f6 {[%emt 0:00:00]} 56. Qe8+ {[%emt 0:00:00]} Kh4 {[%emt 0:00:00]} 57. Qc6 {[%emt 0:00:00]} e4 {[%emt 0:00:00]} 58. Qc5 {[%emt 0:00:00]} f5 {[%emt 0:00:00]} 59. Qc3 {[%emt 0:00:00]} h5 {[%emt 0:00:00]} 60. Qa3 {[%emt 0:00:00]} Qf3 {[%emt 0:00:00]} 61. Qc1 {[%emt 0:00:00]} f4 {[%emt 0:00:00]} 62. Qe1 {[%emt 0:00:00]} g3 {[%emt 0:00:00]} 0-1

[Event "French Top 16-A 2024"]
[Site "Chartres"]
[Date "2024.06.01"]
[Round "1.1"]
[White "Amin, Bassem"]
[Black "Malassagne, Raphael"]
[Result "1-0"]
[ECO "B01"]
[WhiteElo "2683"]
[BlackElo "2260"]
[Annotator "TA"]
[PlyCount "59"]
[EventDate "2024.06.01"]
[EventType "team-tourn"]
[EventCountry "FRA"]
[SourceTitle "playchess.com"]
[Source "ChessBase"]
[SourceQuality "1"]
[TimeControl "40/5400+30:1800+30"]

{[%evp 11,59,27,18,16,10,22,20,26,14,10,4,-8,0,-17,-4,-112,-58,-72,-88,-93,-26,-24,-35,-35,-20,-23,-29,-27,-15,-128,15,0,98,104,108,0,0,0,86,0,90,90,259,241,237,187,177,71,544,551]} 1. e4 {[%emt 0:00:59]} d5 {[%emt 0:00:21]} 2. exd5 {[%emt 0:00:12]} Qxd5 {[%emt 0:00:06]} 3. Nc3 {[%emt 0:00:07]} Qa5 {[%emt 0:00:14]} 4. d4 {[%emt 0:00:22]} Nf6 {[%emt 0:00:10]} 5. Nf3 {[%emt 0:00:07]} Bf5 {[%emt 0:00:21]} 6. Bc4 {[%emt 0:01:43]} e6 {[%emt 0:01:46]} 7. Bd2 {[%emt 0:00:37][%cal Oc3d5] Black must now prevent Nd5!} Bb4 {[%emt 0:00:29]} 8. a3 {[%emt 0:14:46]} Bxc3 {[%emt 0:02:00]} 9. Bxc3 {[%emt 0:00:33] The position is equal.} Qb6 {[%emt 0:00:11]} 10. O-O {[%emt 0:01:25]} O-O {[%emt 0:12:11]} 11. Bb4 {[%emt 0:08:30]} Re8 {[%emt 0:00:45]} 12. Bc5 {[%emt 0:21:46] A strong pair of Bishops.} Qxb2 {[%emt 0:00:39]} 13. Bb3 {[%emt 0:08:56]} (13. Ra2 $1 $11 Qc3 14. Bb5) 13... Nc6 {[%emt 0:18:14]} (13... Na6 $1 $17 {Threatens to win with ...Nxc5.} 14. Bb4 Nxb4 15. axb4 Be4) 14. Ba4 {[%emt 0:07:41]} Qc3 {[%emt 0:15:30]} 15. Rb1 {[%emt 0:05:19]} Qa5 {[%emt 0:05:24]} (15... Reb8 $17 16. Re1 h6) 16. Bxc6 $11 {[%emt 0:00:24]} bxc6 {[%emt 0:00:05]} 17. Ne5 {[%emt 0:00:09] Dodges Nd7} Qa4 {[%emt 0:04:08]} 18. Rb7 {[%emt 0:09:59]} Bxc2 {[%emt 0:03:38]} 19. Qf3 {[%emt 0:00:29]} Be4 {[%emt 0:11:09]} 20. Qf4 {[%emt 0:00:09]} (20. Qe2 $11) 20... Rec8 {[%emt 0:10:58]} ({Better is} 20... Bf5 $17 21. Qf3 (21. Rxc7 $2 Nd5 $19) 21... Nd5) 21. Be7 {[%emt 0:02:56]} Bg6 {[%emt 0:04:48]} (21... Bf5 $1 $11 22. Bxf6 gxf6) 22. Bxf6 $16 {[%emt 0:00:52] White is much more active.} gxf6 {[%emt 0:00:01]} 23. Nd7 {[%emt 0:01:44]} (23. Qxf6 $16 {h4 is the strong threat.} Qxd4 24. Rb4) 23... Qxa3 $11 {[%emt 0:01:12]} 24. Nxf6+ {[%emt 0:00:46]} Kf8 {[%emt 0:02:10]} (24... Kh8 $11) 25. Qh6+ $16 {[%emt 0:04:38][%mdl 1024] White has strong compensation.} (25. Rxc7 $6 Rxc7 26. Qxc7 Qb4 $11) 25... Ke7 {[%emt 0:00:03]} 26. Qg5 {[%emt 0:00:07]} (26. Nxh7 Bxh7 27. Qh4+ (27. Qxh7 a5 $11) 27... Kd7 28. Qxh7 Qe7) 26... Kf8 $2 {[%emt 0:01:18] [#]} (26... Rab8 $16 27. Nxh7+ Kd6 28. Rxb8 (28. Qe5+ Kd7 $14) 28... Rxb8) 27. h4 $1 $18 {[%emt 0:00:14] Hoping for h5.} (27. Qh6+ Ke7 28. Qg5 (28. Nxh7 Bxh7 29. Qh4+ Kd7 $11) 28... h6 $18) 27... h5 {[%emt 0:00:51]} 28. g4 {[%emt 0:01:07]} ({Not} 28. Nxh5 Bxh5 29. Qxh5 Ke7 $14) 28... Qf3 {[%emt 0:03:05] [#]} 29. gxh5 {[%emt 0:02:10]} (29. Nxh5 $2 {is the wrong capture.} Be4 30. Qh6+ Ke7 31. Qg5+ f6 32. Qxf6+ Qxf6 $19) (29. Re1 $1 $18 {[%cal Re1e6] and White stays clearly on top.} hxg4 30. h5 (30. Nxg4 Qf5 $11)) 29... Kg7 $2 {[%emt 0:01:26][%mdl 8192]} (29... Be4 $16 {is a better chance.} 30. Kh2 Qf5) 30. Ng4 {[%emt 0:04:13] Weighted Error Value: White=0.24 (precise) /Black=0.63.  Loses game:     	---       	Black=2      Mistake:       	White=4     	Black=5      Inaccurate:     	---       	Black=1      OK:         	White=6     	Black=11     Best:        	White=5     	---        Strong:       	White=1     	---} 1-0

[Event "French Top 16-A 2024"]
[Site "Chartres"]
[Date "2024.06.01"]
[Round "1.2"]
[White "Ganguly, Surya Shekhar"]
[Black "Movsesian, Sergei"]
[Result "1-0"]
[ECO "B11"]
[WhiteElo "2576"]
[BlackElo "2618"]
[Annotator "TA"]
[PlyCount "57"]
[EventDate "2024.06.01"]
[EventType "team-tourn"]
[EventCountry "FRA"]
[SourceTitle "playchess.com"]
[Source "ChessBase"]
[SourceQuality "1"]
[TimeControl "40/5400+30:1800+30"]

{[%evp 10,56,35,33,32,15,17,16,33,25,29,36,55,31,41,44,118,61,97,97,188,187,187,194,282,251,469,449,492,439,510,510,477,470,645,635,1526,1525,29980,29981,29983,29983,29988,29989,29991,29992,29998,29999,29999]} 1. e4 {[%emt 0:00:48]} c6 {[%emt 0:00:13]} 2. Nf3 {[%emt 0:00:37]} d5 {[%emt 0:00:13]} 3. Nc3 {[%emt 0:00:15]} dxe4 {[%emt 0:00:35]} 4. Nxe4 {[%emt 0:00:07]} Nf6 {[%emt 0:00:05]} 5. Qe2 {[%emt 0:00:15]} Nxe4 {[%emt 0:00:33]} 6. Qxe4 {[%emt 0:00:07]} Nd7 {[%emt 0:00:28]} 7. c3 {[%emt 0:00:18]} Nf6 {[%emt 0:03:48]} 8. Qc2 {[%emt 0:00:08]} e6 {[%emt 0:02:23] The position is equal.} 9. d4 {[%emt 0:02:18]} Be7 {[%emt 0:04:23]} 10. Bd3 {[%emt 0:01:13]} O-O {[%emt 0:01:16]} 11. Bg5 {[%emt 0:03:09]} h6 {[%emt 0:03:14] [#]} 12. h4 {[%emt 0:00:24][%cal Oe1c1]} b5 {[%emt 0:04:36] [#] White leaves nothing to chance now.} (12... hxg5 $2 13. hxg5 g6 14. gxf6 $18) (12... Ng4 $14) (12... c5 13. Bxf6) 13. O-O-O $1 {[%emt 0:06:26]} Bb7 {[%emt 0:04:47]} (13... hxg5 $2 14. hxg5 Re8 15. gxf6 (15. Bh7+ Kf8 $16) 15... Bxf6 16. g4 $18 (16. Bh7+ Kf8 $18)) (13... Nd5 14. Bxe7) 14. Rh3 {[%emt 0:06:36][%cal Og5h6] Bxh6! would now be deadly. White is more active.} Qd5 {[%emt 0:07:06]} (14... hxg5 $2 {perishes.} 15. hxg5 Re8 16. Kb1 $18 (16. gxf6 Bxf6 17. Rdh1 Kf8 $18)) (14... b4 $16 {was worth a try.}) 15. Bxf6 $18 {[%emt 0:07:29]} Bxf6 {[%emt 0:02:52]} 16. g4 $1 {[%emt 0:00:12][%cal Bg2g4,Bg4g5][%mdl 32] Hoping for g5!} g6 {[%emt 0:03:28]} ({But not} 16... Qxa2 17. g5 Bd8 18. gxh6 $18) (16... h5 $142) 17. g5 $1 {[%emt 0:08:23]} hxg5 {[%emt 0:01:32]} (17... Bg7 18. gxh6 Bxh6+ 19. Kb1 Qd6 20. Bxg6 Qf4) 18. hxg5 {[%emt 0:03:54]} Bg7 {[%emt 0:02:59][%cal Oc6c5] [#]} 19. Be4 $1 {[%emt 0:11:54]} Qd6 {[%emt 0:07:03]} 20. Rdh1 {[%emt 0:02:06][%cal Bd1h1,Bh1h4,Bh4f4][%mdl 32]} Rfd8 {[%emt 0:14:16]} 21. Kb1 {[%emt 0:04:33] Rh7 is the strong threat.} Kf8 {[%emt 0:08:10]} 22. Rh7 {[%emt 0:00:50][%cal Oe4g6] Threatens to win with Bxg6!} Qc7 {[%emt 0:06:07] [#]} 23. Bxg6 $1 {[%emt 0:05:36][%cal Oh7g7][%mdl 512] Black must now prevent Rxg7!} fxg6 {[%emt 0:03:54]} (23... Qf4 24. Rxg7) 24. Ne5 {[%emt 0:00:31] White mates.} c5 {[%emt 0:00:33][%cal Bc6c5,Bc5d4][%mdl 32]} 25. R1h4 {[%emt 0:01:11]} cxd4 {[%emt 0:02:29]} 26. Rf4+ {[%emt 0:01:04]} Kg8 {[%emt 0:00:06] [#]} 27. Qxg6 $1 {[%emt 0:00:09]} Qxe5 {[%emt 0:01:48]} (27... Be4+ 28. Rxe4) 28. Qf7+ {[%emt 0:00:06]} Kxh7 {[%emt 0:00:05]} 29. Rh4# {[%emt 0:00:35] Weighted Error Value: White=0.03 (flawless) /Black=0.65.  Mistake:       	White=1     	Black=4      Inaccurate:     	---       	Black=3      OK:         	White=9     	Black=4      Strong:       	White=3     	---} 1-0

[Event "French Top 16-A 2024"]
[Site "Chartres"]
[Date "2024.06.01"]
[Round "1.2"]
[White "Willems, Niels"]
[Black "Van Foreest, Jorden"]
[Result "0-1"]
[ECO "A28"]
[WhiteElo "2329"]
[BlackElo "2665"]
[Annotator "RC"]
[PlyCount "136"]
[EventDate "2024.06.01"]
[EventType "team-tourn"]
[EventCountry "FRA"]
[SourceTitle "playchess.com"]
[Source "ChessBase"]
[SourceQuality "1"]
[TimeControl "40/5400+30:1800+30"]

1. c4 {[%emt 0:00:06]} e5 {[%emt 0:01:09]} 2. Nc3 {[%emt 0:00:11]} Nf6 {[%emt 0:00:46]} 3. Nf3 {[%emt 0:00:08]} Nc6 {[%emt 0:00:06]} 4. e4 {[%emt 0:00:16]} Bb4 {[%emt 0:01:25]} 5. d3 {[%emt 0:00:15]} d6 {[%emt 0:00:06]} 6. a3 {[%emt 0:00:58]} Bxc3+ {[%emt 0:00:11]} 7. bxc3 {[%emt 0:00:07]} Ng8 {[%emt 0:02:19]} 8. Be2 {[%emt 0:05:04]} Nge7 {[%emt 0:01:10]} 9. O-O {[%emt 0:00:39]} Ng6 {[%emt 0:02:52]} 10. Be3 {[%emt 0:06:26]} b6 {[%emt 0:01:52]} 11. d4 {[%emt 0:02:11]} O-O {[%emt 0:02:21]} 12. c5 {[%emt 0:08:37]} dxc5 {[%emt 0:03:42]} 13. dxc5 {[%emt 0:00:23]} Qe7 {[%emt 0:02:06]} 14. Qa4 {[%emt 0:21:49]} Bd7 {[%emt 0:00:55]} 15. Qc2 {[%emt 0:11:02]} Na5 {[%emt 0:04:47]} 16. c4 {[%emt 0:05:50]} Nb7 {[%emt 0:08:09]} 17. cxb6 {[%emt 0:02:29]} axb6 {[%emt 0:02:20]} 18. c5 {[%emt 0:06:56]} Nxc5 {[%emt 0:00:07]} 19. Bxc5 {[%emt 0:00:15]} bxc5 {[%emt 0:00:58]} 20. g3 {[%emt 0:02:07]} Bg4 {[%emt 0:00:09]} 21. Rfc1 {[%emt 0:01:04]} Ra5 {[%emt 0:00:39]} 22. Ne1 {[%emt 0:02:50]} Bxe2 {[%emt 0:00:04]} 23. Qxe2 {[%emt 0:00:03]} Rfa8 {[%emt 0:00:06]} 24. Qb2 {[%emt 0:01:53]} Qd7 {[%emt 0:08:21]} 25. Rc4 {[%emt 0:02:11]} Qe6 {[%emt 0:03:44]} 26. Qc1 {[%emt 0:02:20]} Qd6 {[%emt 0:03:00]} 27. Qc3 {[%emt 0:00:08]} Nf8 {[%emt 0:00:03]} 28. Nd3 {[%emt 0:01:11]} Ne6 {[%emt 0:00:08]} 29. Kg2 {[%emt 0:01:16]} f6 {[%emt 0:00:43]} 30. a4 {[%emt 0:02:40]} Qc6 {[%emt 0:00:53]} 31. Qb3 {[%emt 0:01:04]} Kh8 {[%emt 0:02:23]} 32. f3 {[%emt 0:01:23]} h6 {[%emt 0:00:28]} 33. h4 {[%emt 0:08:29]} Kh7 {[%emt 0:00:06]} 34. Ra2 {[%emt 0:00:41]} Nd4 {[%emt 0:00:18]} 35. Qa3 {[%emt 0:00:32]} Qe6 {[%emt 0:05:16]} 36. Qc3 {[%emt 0:01:31]} Rb5 {[%emt 0:06:34]} 37. Ra3 {[%emt 0:01:48]} Rb1 {[%emt 0:00:04]} 38. Nxc5 {[%emt 0:00:39]} Qd6 {[%emt 0:01:13]} 39. Ra2 {[%emt 0:01:13]} Rab8 {[%emt 0:06:49]} 40. a5 {[%emt 0:01:03]} Nb3 {[%emt 0:06:29]} 41. Nd3 {[%emt 0:14:39]} Rd1 {[%emt 0:09:19]} 42. Nf2 {[%emt 0:01:52]} Rc1 {[%emt 0:00:06]} 43. Qxc1 {[%emt 0:02:16]} Nxc1 {[%emt 0:00:04]} 44. Rxc1 {[%emt 0:00:03]} Qa6 {[%emt 0:00:03]} 45. Rac2 {[%emt 0:06:32]} Rb3 {[%emt 0:00:20]} 46. Rxc7 {[%emt 0:02:33]} Qxa5 {[%emt 0:00:46]} 47. Rd7 {[%emt 0:01:17]} Rb2 {[%emt 0:07:02]} 48. Rcc7 {[%emt 0:00:23]} Qa2 {[%emt 0:01:20]} 49. Rxg7+ {[%emt 0:00:06]} Kh8 {[%emt 0:00:02]} 50. Rh7+ {[%emt 0:00:36]} Kg8 {[%emt 0:00:05]} 51. Rhg7+ {[%emt 0:00:25]} Kf8 {[%emt 0:00:05]} 52. Rgf7+ {[%emt 0:00:03]} Qxf7 {[%emt 0:00:06]} 53. Rxf7+ {[%emt 0:00:03]} Kxf7 {[%emt 0:00:06]} 54. h5 {[%emt 0:00:25]} Ke6 {[%emt 0:00:02]} 55. g4 {[%emt 0:02:49]} Kd6 {[%emt 0:00:14]} 56. Kg3 {[%emt 0:02:24]} Rd2 {[%emt 0:00:04]} 57. Nh1 {[%emt 0:01:11]} Kc5 {[%emt 0:00:46]} 58. Kh3 {[%emt 0:00:39]} Rd3 {[%emt 0:00:27]} 59. Kg2 {[%emt 0:00:03]} Kd4 {[%emt 0:00:12]} 60. Ng3 {[%emt 0:00:01]} Ke3 {[%emt 0:00:23]} 61. Nf5+ {[%emt 0:00:41]} Kf4 {[%emt 0:00:08]} 62. Nxh6 {[%emt 0:01:58]} Rxf3 {[%emt 0:00:07]} 63. Ng8 {[%emt 0:00:39]} Rg3+ {[%emt 0:03:24]} 64. Kf2 {[%emt 0:00:21]} Rxg4 {[%emt 0:00:40]} 65. Nxf6 {[%emt 0:00:04]} Rh4 {[%emt 0:00:08]} 66. Ke2 {[%emt 0:01:01]} Kg5 {[%emt 0:00:35]} 67. Nh7+ {[%emt 0:00:34]} Kxh5 {[%emt 0:00:35]} 68. Kd3 {[%emt 0:00:06]} Rf4 {[%emt 0:00:05]} 0-1

[Event "French Top 16-A 2024"]
[Site "Chartres"]
[Date "2024.06.01"]
[Round "1.3"]
[White "Esipenko, Andrey"]
[Black "Postny, Evgeny"]
[Result "1/2-1/2"]
[ECO "C65"]
[WhiteElo "2704"]
[BlackElo "2602"]
[Annotator "TA"]
[PlyCount "69"]
[EventDate "2024.06.01"]
[EventType "team-tourn"]
[EventCountry "FRA"]
[SourceTitle "playchess.com"]
[Source "ChessBase"]
[SourceQuality "1"]
[TimeControl "40/5400+30:1800+30"]

{[%evp 9,69,10,14,16,25,0,29,23,29,29,64,68,71,26,30,33,36,34,31,37,25,-3,-12,-16,-22,-12,0,0,0,0,0,0,0,0,0,0,0,0,0,0,0,0,0,0,0,0,0,0,0,0,0,0,0,0,0,0,0,0,0,0,0,0]} 1. e4 {[%emt 0:00:18]} e5 {[%emt 0:00:06]} 2. Nf3 {[%emt 0:00:17]} Nc6 {[%emt 0:00:06]} 3. Bb5 {[%emt 0:00:13]} Nf6 {[%emt 0:00:07]} 4. d3 {[%emt 0:00:10]} Bc5 {[%emt 0:00:15]} 5. c3 {[%emt 0:00:34]} O-O {[%emt 0:00:27]} 6. O-O {[%emt 0:00:14]} d5 {[%emt 0:00:23]} 7. Nbd2 {[%emt 0:00:23]} Re8 {[%emt 0:01:41]} 8. exd5 {[%emt 0:14:57] White has an edge.} a6 {[%emt 0:00:58]} 9. Bc4 {[%emt 0:05:17]} Nxd5 {[%emt 0:03:34]} 10. Ne4 $1 {[%emt 0:00:33]} Be7 {[%emt 0:11:38]} 11. Re1 {[%emt 0:02:09] White is more active.} h6 {[%emt 0:08:55] Wards off Nfg5} 12. a4 {[%emt 0:02:06]} Be6 {[%emt 0:04:38]} 13. b4 {[%emt 0:04:26]} Bf8 {[%emt 0:07:45]} 14. Bd2 {[%emt 0:02:37]} Nf6 {[%emt 0:05:51]} 15. Qe2 {[%emt 0:09:06]} Bxc4 {[%emt 0:08:59] The position is equal.} 16. dxc4 {[%emt 0:00:22]} Nxe4 {[%emt 0:04:50]} 17. Qxe4 {[%emt 0:00:02]} Qc8 {[%emt 0:00:26]} 18. a5 {[%emt 0:11:38]} f5 {[%emt 0:08:51]} 19. Qd5+ {[%emt 0:01:30]} Qe6 {[%emt 0:00:06]} 20. Qxe6+ {[%emt 0:19:09]} Rxe6 {[%emt 0:02:39]} 21. b5 {[%emt 0:05:17]} axb5 {[%emt 0:00:37]} 22. cxb5 {[%emt 0:00:04]} Nxa5 {[%emt 0:00:06]} 23. Bf4 {[%emt 0:00:47]} (23. c4 $5 b6 $8 24. Rxe5 Rxe5 (24... Nxc4 $2 {perishes.} 25. Rxa8 Nxe5 26. Nxe5 $18) 25. Nxe5 $11) 23... Bd6 {[%emt 0:18:03][%cal Oa8e8]} 24. Bxe5 {[%emt 0:02:49]} Bxe5 {[%emt 0:00:26]} 25. Rxe5 {[%emt 0:00:15]} Rxe5 {[%emt 0:00:30]} 26. Nxe5 $11 {[%emt 0:00:05][%mdl 4096] Endgame. KRN-KRN} Rd8 {[%emt 0:00:12][%cal Od8d5]} 27. h4 {[%emt 0:03:52]} Nb3 {[%emt 0:03:15]} 28. Ra4 {[%emt 0:02:50]} Nc5 {[%emt 0:01:31]} 29. Rf4 {[%emt 0:01:34]} Ne4 {[%emt 0:02:54]} 30. c4 {[%emt 0:01:57]} Nd6 {[%emt 0:01:46]} 31. Rd4 {[%emt 0:01:24]} Nf7 {[%emt 0:00:40]} 32. Nd7 {[%emt 0:03:22]} Nd6 {[%emt 0:01:53]} ({Don't blunder} 32... Ne5 $2 33. Nf6+ Kf7 34. Rxd8 $18) 33. Ne5 {[%emt 0:01:51]} Nf7 {[%emt 0:00:04]} 34. Nd7 {[%emt 0:03:11]} Nd6 {[%emt 0:00:06]} ({Don't go for} 34... Ne5 $2 35. Nf6+ Kf7 36. Rxd8 $18) 35. Ne5 {[%emt 0:01:15] Weighted Error Value: White=0.05 (flawless) /Black=0.04 (flawless) .  Inaccurate:     	White=2     	Black=2      OK:         	White=14    	Black=14     Strong:       	White=1     	---} 1/2-1/2

[Event "French Top 16-A 2024"]
[Site "Chartres"]
[Date "2024.06.01"]
[Round "1.3"]
[White "Tregubov, Pavel V."]
[Black "Dumas, Charles"]
[Result "1/2-1/2"]
[ECO "B31"]
[WhiteElo "2562"]
[BlackElo "2256"]
[Annotator "RC"]
[PlyCount "143"]
[EventDate "2024.06.01"]
[EventType "team-tourn"]
[EventCountry "FRA"]
[SourceTitle "playchess.com"]
[Source "ChessBase"]
[SourceQuality "1"]
[TimeControl "40/5400+30:1800+30"]

1. e4 {[%emt 0:00:02]} c5 {[%emt 0:00:05]} 2. Nf3 {[%emt 0:00:06]} Nc6 {[%emt 0:00:07]} 3. Bb5 {[%emt 0:00:05]} g6 {[%emt 0:00:11]} 4. O-O {[%emt 0:00:07]} Bg7 {[%emt 0:00:06]} 5. c3 {[%emt 0:00:05]} Nf6 {[%emt 0:00:32]} 6. Re1 {[%emt 0:00:09]} O-O {[%emt 0:00:48]} 7. h3 {[%emt 0:00:10]} e5 {[%emt 0:01:13]} 8. d4 {[%emt 0:00:16]} cxd4 {[%emt 0:01:06]} 9. cxd4 {[%emt 0:00:08]} Nxd4 {[%emt 0:00:47]} 10. Nxd4 {[%emt 0:00:08]} exd4 {[%emt 0:00:06]} 11. Qxd4 {[%emt 0:02:02]} d5 {[%emt 0:00:32]} 12. e5 {[%emt 0:00:14]} Ne4 {[%emt 0:00:45]} 13. Nc3 {[%emt 0:00:13]} Nxc3 {[%emt 0:01:52]} 14. bxc3 {[%emt 0:00:08]} Qa5 {[%emt 0:00:58]} 15. a4 {[%emt 0:03:16]} Be6 {[%emt 0:01:14]} 16. Ba3 {[%emt 0:00:46]} Rfc8 {[%emt 0:01:14]} 17. Bb4 {[%emt 0:00:09]} Qd8 {[%emt 0:01:13]} 18. a5 {[%emt 0:08:51]} Bf8 {[%emt 0:17:53]} 19. h4 {[%emt 0:22:55]} a6 {[%emt 0:17:14]} 20. Bd3 {[%emt 0:01:38]} Rc6 {[%emt 0:01:40]} 21. h5 {[%emt 0:10:27]} Qg5 {[%emt 0:15:46]} 22. hxg6 {[%emt 0:01:05]} hxg6 {[%emt 0:00:36]} 23. Re3 {[%emt 0:01:38]} Rac8 {[%emt 0:08:17]} 24. Rg3 {[%emt 0:07:55]} Qh6 {[%emt 0:03:43]} 25. Bxf8 {[%emt 0:04:00]} Kxf8 {[%emt 0:07:24]} 26. Qb4+ {[%emt 0:03:51]} Kg7 {[%emt 0:03:02]} 27. Qe7 {[%emt 0:02:15]} R8c7 {[%emt 0:01:12]} 28. Qf6+ {[%emt 0:06:55]} Kh7 {[%emt 0:00:15]} 29. Re1 {[%emt 0:03:25]} Qg7 {[%emt 0:07:22]} 30. Qh4+ {[%emt 0:04:39]} Qh6 {[%emt 0:00:47]} 31. Qd4 {[%emt 0:01:08]} Kg7 {[%emt 0:00:39]} 32. Bf1 {[%emt 0:05:17]} Rc8 {[%emt 0:01:10]} 33. f4 {[%emt 0:00:38]} Qh4 {[%emt 0:01:29]} 34. Ree3 {[%emt 0:02:59]} Rh8 {[%emt 0:00:21]} 35. Kf2 {[%emt 0:02:19]} Rh5 {[%emt 0:00:49]} 36. Be2 {[%emt 0:03:09]} Rh8 {[%emt 0:04:46]} 37. Bd3 {[%emt 0:01:30]} Rh5 {[%emt 0:00:36]} 38. Ref3 {[%emt 0:01:59]} Kf8 {[%emt 0:00:46]} 39. Qb4+ {[%emt 0:02:00]} Qe7 {[%emt 0:00:22]} 40. Be2 {[%emt 0:01:09]} Rh1 {[%emt 0:00:56]} 41. Rg5 {[%emt 0:10:19]} Qxb4 {[%emt 0:04:48]} 42. cxb4 {[%emt 0:00:05]} Rc2 {[%emt 0:00:53]} 43. Rd3 {[%emt 0:04:43]} Rb1 {[%emt 0:03:40]} 44. Ke3 {[%emt 0:00:08]} Rxb4 {[%emt 0:11:50]} 45. Bf3 {[%emt 0:00:06]} Bf5 {[%emt 0:01:52]} 46. Rxf5 {[%emt 0:00:34]} gxf5 {[%emt 0:00:06]} 47. Rxd5 {[%emt 0:06:20]} Rb3+ {[%emt 0:01:03]} 48. Kd4 {[%emt 0:01:04]} Rd2+ {[%emt 0:00:36]} 49. Kc5 {[%emt 0:00:48]} Rb5+ {[%emt 0:00:57]} 50. Kd6 {[%emt 0:00:38]} Rdxd5+ {[%emt 0:01:53]} 51. Bxd5 {[%emt 0:00:04]} Rxa5 {[%emt 0:03:08]} 52. Bxb7 {[%emt 0:00:07]} Kg7 {[%emt 0:01:50]} 53. Bc8 {[%emt 0:01:01]} Kg6 {[%emt 0:00:57]} 54. g4 {[%emt 0:00:07]} fxg4 {[%emt 0:00:31]} 55. Bxg4 {[%emt 0:00:06]} Ra4 {[%emt 0:01:00]} 56. Bc8 {[%emt 0:00:32]} a5 {[%emt 0:00:47]} 57. f5+ {[%emt 0:00:10]} Kg7 {[%emt 0:01:14]} 58. Ke7 {[%emt 0:02:28]} Re4 {[%emt 0:01:04]} 59. f6+ {[%emt 0:00:36]} Kg6 {[%emt 0:01:09]} 60. e6 {[%emt 0:00:16]} fxe6 {[%emt 0:00:42]} 61. f7 {[%emt 0:01:07]} Rf4 {[%emt 0:00:09]} 62. Bxe6 {[%emt 0:00:53]} Kg7 {[%emt 0:00:25]} 63. Ke8 {[%emt 0:00:15]} a4 {[%emt 0:00:28]} 64. Ke7 {[%emt 0:00:06]} a3 {[%emt 0:00:30]} 65. Ke8 {[%emt 0:10:41]} Rf2 {[%emt 0:00:34]} 66. Ke7 {[%emt 0:00:00]} Rf6 {[%emt 0:00:43]} 67. Bd5 {[%emt 0:00:00]} Rf2 {[%emt 0:00:26]} 68. Be6 {[%emt 0:00:00]} Rf4 {[%emt 0:00:14]} 69. Ke8 {[%emt 0:00:00]} Rxf7 {[%emt 0:00:39]} 70. Bxf7 {[%emt 0:00:00]} a2 {[%emt 0:00:01]} 71. Bxa2 {[%emt 0:00:00]} Kg6 {[%emt 0:01:57]} 72. Ke7 {[%emt 0:00:00]} 1/2-1/2